Cogmind - Beta 17 @@@ ROGUE MODE // 2026.06.25 @ 01:51:53 Player: Dull Result: Destroyed by 5K-B8H(R) with Subdweller Machine Gun Performance ------------- Evolutions (0) 0 Regions Visited (2) 400 Robots Destroyed (30) 150 Value Destroyed (687) 687 Prototype IDs (2) 40 Alien Tech Used (0) 0 Bonus (0) 0 TOTAL SCORE: 1277 Bonus ------- None Cogmind --------- Core Integrity 0/250 Matter 239/300 Energy 200/200 System Corruption 0% Temperature Cool (0) Movement Rolling (195) Ox7 Location -10/Subcaves Parts ------- > --- POWER (1) -------- Subdweller Power Source > --- PROPULSION (2) --- Armored Wheel > --- UTILITY (2) ------ Huge Storage Unit Core Shielding > --- WEAPON (2) ------- Improved Light Cannon Improved Light Cannon > --- INVENTORY (25) --- Ion Engine Ion Engine Aluminum Leg Aluminum Leg Compact Wheel Armored Wheel Subdweller Monowheel Subdweller Monowheel Heat Sink Disposable Heat Sink Large Storage Unit Large Battery (200) High-capacity Matter Pod (52) Weight Redist. System Subdweller Optics Terrain Scanner ECM Suite Utility Shielding Makeshift Light Armor Plating Tractor Beam Subdweller Machine Gun Subdweller Machine Gun Scrap Shield Fragment (46) Peak State ------------ > --- POWER ------------ Subdweller Power Source > --- PROPULSION ------- Armored Wheel Armored Wheel > --- UTILITY ---------- Huge Storage Unit Core Shielding > --- WEAPON ----------- Shotgun Improved Light Cannon > --- INVENTORY -------- Ion Engine Ion Engine Aluminum Leg Aluminum Leg Compact Wheel Armored Wheel Subdweller Monowheel Subdweller Monowheel Heat Sink Disposable Heat Sink Large Storage Unit Large Battery High-capacity Matter Pod Weight Redist. System Subdweller Optics Terrain Scanner ECM Suite Utility Shielding Tractor Beam Shotgun Improved Light Cannon Improved Light Cannon Improved Light Cannon Scrap Shield Fragment [Rating: 15] Favorites ----------- Power Light Ion Engine Engine Light Ion Engine Propulsion Armored Wheel Leg Aluminum Leg Wheel Armored Wheel Utility Huge Storage Unit Device Terrain Scanner Storage Huge Storage Unit Protection Core Shielding Weapon Shotgun Ballistic Gun Shotgun Ballistic Cannon Improved Light Cannon Build | -11 -10 -10 ------- Run | Yrd Mat Sub Slots Evolved . | . . . Power . | . . . Propulsion . | . . . Utility . | . . . Weapon . | . . . Parts Attached 21 | 3 11 7 Power 3 | . 2 1 Engine 3 | . 2 1 Core . | . . . Reactor . | . . . Propulsion 4 | 2 2 . Treads . | . . . Leg . | . . . Wheel 4 | 2 2 . Hover . | . . . Flight . | . . . Utility 4 | 1 2 1 Device 1 | . 1 . Storage 2 | 1 1 . Processor . | . . . Hackware . | . . . Protection 1 | . . 1 Artifact . | . . . Weapon 10 | . 5 5 Energy Gun . | . . . Energy Cannon . | . . . Ballistic Gun 6 | . 5 1 Ballistic Cannon 4 | . . 4 Launcher . | . . . Special Weapon . | . . . Impact Weapon . | . . . Slashing Weapon . | . . . Piercing Weapon . | . . . Special Melee Weapon . | . . . Unidentified Prototypes . | . . . Parts Lost 10 | . 4 6 Power 1 | . . 1 Propulsion 3 | . 2 1 Utility 1 | . 1 . Weapon 5 | . 1 4 Highest Loss Streak 3 | . 3 3 To Critical Strikes . | . . . Average Backups 16 | 6 13 21 Power 1 | 1 1 2 Propulsion 4 | 4 4 5 Utility 6 | . 3 10 Weapon 4 | 1 4 3 Tool/Special . | . . . Unused Backups 33 | 4 8 21 Power 3 | 1 . 2 Propulsion 12 | . 6 6 Utility 13 | 1 1 11 Weapon 5 | 2 1 2 Tool/Special . | . . . Average Slot Usage (%) 97 | . 97 97 Engine 13 | . 13 12 Wheel 27 | . 27 28 Device 7 | . 11 1 Storage 14 | . 14 14 Protection 5 | . . 12 Ballistic Gun 22 | . 27 14 Ballistic Cannon 5 | . . 12 Peak Build Rating 15 | 7 13 15 Average Rating 12 | 6 11 14 On Entrance 8 | 6 6 13 Avg Prop Armor Cover (%) . | . . . Naked Turns . | . . . Heaviest Build 93 | 14 92 93 Greatest Support 24 | 20 24 24 Greatest Overweight (x) 4 | . 4 3 Average Overweight (x) 2 | . 2 3 Largest Inventory Capacity 25 | 8 25 25 Average Capacity 23 | 8 23 25 Most Carried 25 | 7 19 25 Average Carried 16 | 6 13 22 Final Capacity 25 | 8 25 25 Final Carried 23 | 6 19 23 Class Distribution -------------------- 100% | Mutant Dominant Class ---------------- Mutant | -10/Materials Mutant | -10/Subcaves Resources | -11 -10 -10 ----------- Run | Yrd Mat Sub Matter Collected 1114 | 264 557 293 Remotely . | . . . Salvage Created 819 | 94 562 163 Parts 46 | 8 28 10 Haulers Intercepted 2 | . 2 . Recyclers Shooed 2 | . 2 . Parts Field Recycled . | . . . Retrieved Matter . | . . . Parts Self-Destructed 2 | . . 2 Prevented . | . . . Parts Restored . | . . . Kills | -11 -10 -10 ------- Run | Yrd Mat Sub Combat Hostiles Destroyed 22 | . 15 7 Guns 19 | . 15 4 Cannons 3 | . . 3 Classes Destroyed 8 | 2 4 2 Tunneler 1 | 1 . . Hauler 2 | . 2 . Recycler 2 | 1 1 . Watcher 3 | . 3 . Swarmer 8 | . 8 . Grunt 7 | . 7 . Sentry 1 | . . 1 Subdweller 6 | . . 6 Best Kill Streak 4 | 2 4 2 Combat Bots Only 3 | . 3 2 Max Kills in Single Turn 2 | 1 2 1 Gunslinging 1 | . 1 . Exploded . | . . . Melee . | . . . Uniques/NPCs Destroyed . | . . . Combat | -11 -10 -10 -------- Run | Yrd Mat Sub Hostile Shots Fired 141 | . 60 81 Missed 45 | . 16 29 Hits 96 | . 44 52 Projectile 96 | . 44 52 Critical Strikes 1 | . . 1 Damage Taken 1523 | . 438 1085 Core 253 | . 62 191 Absorbed by Shields . | . . . Redirected to Shielding 29 | . . 29 Core Remaining (%) 100 | 100 . . Volleys Fired 93 | 4 48 41 Largest 2 | 2 2 2 Hottest 66 | 40 46 66 Shots Fired 174 | 8 96 70 Gun 142 | 8 96 38 Cannon 32 | . . 32 Launcher . | . . . Special . | . . . Kinetic 174 | 8 96 70 Thermal . | . . . Explosive . | . . . Electromagnetic . | . . . Robot Hit Streak 18 | 3 11 18 Robot Miss Streak 8 | 1 8 4 Penetration Max . | . . . Secondary Targets 3 | . 2 1 Max Gunslinging Chain 1 | . 1 1 Shots Hit Robots 128 | 4 65 59 Core Hits 55 | 3 35 17 Critical Kills 1 | . 1 . Critical Parts Destroyed . | . . . Critical Strikes 3 | . 1 2 Destroy 2 | . 1 1 Blast 1 | . . 1 Melee Attacks . | . . . Impact . | . . . Slashing . | . . . Piercing . | . . . Sneak Attacks . | . . . Combat Hostiles . | . . . Follow-up Attacks . | . . . Damage Inflicted 2067 | 50 916 1101 Guns 1601 | 50 916 635 Cannons 466 | . . 466 Explosions . | . . . Melee . | . . . Ramming . | . . . Kinetic 2067 | 50 916 1101 Thermal . | . . . Explosive . | . . . Electromagnetic . | . . . Impact . | . . . Slashing . | . . . Piercing . | . . . Highest Corruption . | . . . Average Corruption . | . . . Corruption Purged . | . . . Corruption Blocked . | . . . Overload Shots . | . . . Overflow Damage . | . . . Projectiles . | . . . Explosions . | . . . Melee . | . . . Knockbacks 5 | . . 5 Impact . | . . . Kinetic 5 | . . 5 Secondary . | . . . Self-Inflicted Damage . | . . . Shots . | . . . Rammed . | . . . Targets Rammed . | . . . Kicked . | . . . Crushed . | . . . Highest Temperature 5 | . 5 . Average Temperature 1 | . 1 . Received Heat Transfer 378 | . 174 204 Siege Activations . | . . . Martial Activations . | . . . Shielding Activations . | . . . Robots Disrupted . | . . . Combat Hostiles . | . . . Robots Corrupted . | . . . Combat Hostiles . | . . . Parts Fried . | . . . Impact Corruptions . | . . . Robots Melted . | . . . Combat Hostiles . | . . . Parts Melted . | . . . Heat Transferred . | . . . Parts Sabotaged . | . . . Parts Stolen . | . . . Parts Stripped . | . . . Power Chain Reactions . | . . . Alert | -11 -10 -10 ------- Run | Yrd Mat Sub Maximum Alert Level . | . . . Low Security (%) 100 | 100 100 . Level 1 . | . . . Level 2 . | . . . Level 3 . | . . . Level 4 . | . . . Level 5 . | . . . High Security . | . . . Max Security . | . . . Peak Influence 98 | 10 98 . Initial . | . . . Average 40 | 1 41 . Influence Increases 465 | 10 435 20 Destroy 0b10 Robot/C 320 | . 300 20 Destroy 0b10 Robot/NC 40 | 10 30 . Destroy Leader 80 | . 80 . Successful Hack 25 | . 25 . Influence Decreases 465 | 10 435 20 Time Decay 382 | 10 352 20 Lost Part 40 | . 40 . Purge Threat 43 | . 43 . Squads Dispatched 4 | . 4 . Investigation 2 | . 2 . Extermination . | . . . Reinforcement 2 | . 2 . Assault . | . . . Garrison . | . . . Intercept . | . . . Searches Triggered . | . . . Construction Impeded . | . . . Haulers Reinforced . | . . . Active Scanning Responses . | . . . Cargo Convoy Interrupts . | . . . Stealth | -11 -10 -10 --------- Run | Yrd Mat Sub Distress Signals 2 | . 2 . Communications Jammed . | . . . Distress Signals . | . . . Times Spotted 36 | . 26 10 Peak Tracking Total 6 | . 6 3 Tactical Retreats . | . . . Traps | -11 -10 -10 ------- Run | Yrd Mat Sub Traps Triggered 4 | . 4 . Indirectly . | . . . Trap Hack Attempts . | . . . Triggered . | . . . Disarmed . | . . . Reprogrammed . | . . . Reused . | . . . Traps Extracted . | . . . Installed . | . . . Triggered . | . . . Machines | -11 -10 -10 ---------- Run | Yrd Mat Sub Machines Disabled . | . . . Max in Single Turn . | . . . Machines Repaired . | . . . Machines Dismantled . | . . . Machines Sabotaged . | . . . Overloaded Fab Kills . | . . . Hacking | -11 -10 -10 --------- Run | Yrd Mat Sub Machines Accessed 8 | . 7 1 Terminals 5 | . 5 . Fabricators . | . . . Repair Stations 1 | . 1 . Recycling Units 1 | . 1 . Scanalyzers . | . . . Garrison Access . | . . . Total Hacks 22 | . 19 3 Successful 15 | . 12 3 Failed 7 | . 7 . Catastrophic 1 | . 1 . Database Lockouts . | . . . Manual . | . . . Terminals 14 | . 14 . Fabricators . | . . . Repair Stations 2 | . 2 . Recycling Units 3 | . 3 . Scanalyzers . | . . . Garrison Access . | . . . Terminal Hacks 12 | . 9 3 Record 3 | . . 3 Robot Analysis 1 | . 1 . Prototype ID Bank 1 | . 1 . Alert Level 1 | . 1 . Unreport Threat 2 | . 2 . Hauler Manifests 2 | . 2 . Zone Layout 2 | . 2 . Fabricator Hacks . | . . . Repair Station Hacks 1 | . 1 . Refit 1 | . 1 . Recycling Unit Hacks 2 | . 2 . Recycle Component 1 | . 1 . Report Inventory 1 | . 1 . Scanalyzer . | . . . Garrison Access Hacks . | . . . Unauthorized Hacks . | . . . Terminals . | . . . Fabricators . | . . . Repair Stations . | . . . Recycling Units . | . . . Scanalyzers . | . . . Garrison Access . | . . . Data Cores Recovered . | . . . Used . | . . . Hacking Detections 6 | . 6 . Full Trace Events 2 | . 2 . Feedback Events . | . . . Feedback Blocked . | . . . Robot Schematics Acquired . | . . . Robots Built . | . . . Authchips . | . . . Time . | . . . Total Robot Build Rating . | . . . Part Schematics Acquired . | . . . Parts Built . | . . . Authchips . | . . . Time . | . . . Total Part Build Rating . | . . . Part Studies Acquired . | . . . Parts Repaired . | . . . Time . | . . . Parts Recycled 1 | . 1 . Recycled Matter . | . . . Retrieved Matter . | . . . Retrieved Components . | . . . Parts Scanalyzed . | . . . Part Schematics Acquired . | . . . Parts Damaged . | . . . Bothacking | -11 -10 -10 ------------ Run | Yrd Mat Sub Used RIF Installer . | . . . Robots Hacked . | . . . Non-combat . | . . . Combat . | . . . Robot Hacks Applied . | . . . Relay Couplers Released . | . . . Fabnet Peak Effective % . | . . . Robots Rewired . | . . . Allies Hacked . | . . . Hacks Repelled . | . . . Allies | -11 -10 -10 -------- Run | Yrd Mat Sub Total Allies . | . . . Largest Group . | . . . Highest-Rated Group . | . . . Highest-Rated Ally . | . . . Total Orders . | . . . Ally Attacks . | . . . Total Damage . | . . . Kills . | . . . Allies Corrupted . | . . . Allies Melted . | . . . Intel | -11 -10 -10 ------- Run | Yrd Mat Sub Active Infowar (turns) 1054 | . 979 75 Terrain 1054 | . 979 75 Robot Analysis Total 1 | . 1 . Derelict Logs Recovered 1 | . . 1 Drone Launches . | . . . Drone Recoveries . | . . . Exploration | -11 -10 -10 ------------- Run | Yrd Mat Sub Turns Passed 1976 | 42 1149 785 Spaces Moved 1177 | 21 694 462 Core 3 | . 3 . Treads . | . . . Legs 14 | 14 . . Wheels 1160 | 7 691 462 Hover . | . . . Flight . | . . . Fastest Speed 80 | 80 80 135 Average Speed 131 | 106 129 135 Slowest Speed 140 | 120 140 135 Overloaded Moves . | . . . Propulsion Burnouts . | . . . Robots Hopped . | . . . Potential Cave-ins . | . . . Cave-ins Triggered . | . . . Exploration Rate (%) 44 | 3 90 41 Regions Visited 2 Branch Regions 1 Pre-discovered Areas 1 | . . 1 Known Exits Taken . | . . . Unknown Exits Taken 2 | 1 1 . Scrap Searched 1 | . . 1 Spaces Dug . | . . . Terrain Destroyed . | . . . Melee . | . . . Projectile . | . . . AOE . | . . . Terrain Rammed . | . . . Walls Destroyed . | . . . Machines Disabled . | . . . Actions | -11 -10 -10 --------- Run | Yrd Mat Sub Total 1432 | 32 847 553 Wait 76 | . 49 27 Move 1175 | 20 693 462 Hop . | . . . Pick Up 42 | 1 30 11 Fast Attach 4 | . 4 . Attach 13 | 2 6 5 Detach 2 | 2 . . Swap 12 | 2 5 5 Drop 15 | 1 12 2 Fire 93 | 4 48 41 Melee . | . . . Ram . | . . . Kick . | . . . Crush . | . . . Escape Stasis . | . . . Rewire . | . . . Trap . | . . . Miscellaneous . | . . . Route ------- -11/Scrapyard -10/Materials (discovered 5 exits: [*Mat x3] / [Min] / *Sub) -10/Subcaves (discovered 1 exit: [*Mat]) History --------- Turn | Location | Event 1 | -11/Scrapyard | Discovered new exit (range 3) 43 | -11/Scrapyard | Entered Materials 310 | -10/Materials | Build established: Mutant 499 | -10/Materials | Lost 3 parts (2n1w) 608 | -10/Materials | Discovered new exit (range 10) 752 | -10/Materials | Discovered new exit (range 15) 949 | -10/Materials | Discovered new exit (range 6) 1047 | -10/Materials | Discovered new exit (range 10) 1069 | -10/Materials | Discovered new exit (range 5) 1192 | -10/Materials | Entered Subcaves 1193 | -10/Subcaves | Approached by a straggling Scientist 1310 | -10/Subcaves | Visited Clippyterm 1314 | -10/Subcaves | Learned location of Extension (-5) 1408 | -10/Subcaves | Core integrity fell below 50% 1537 | -10/Subcaves | Learned location of 1 exit from Materials 1689 | -10/Subcaves | Discovered new exit (range 15) 1876 | -10/Subcaves | Shifting Twisted Machinery released Battle Rifle 1881 | -10/Subcaves | Shifting Twisted Machinery released Sub. Machine Gun 1956 | -10/Subcaves | Core integrity fell below 20% 1977 | -10/Subcaves | Destroyed by 5K-B8H(R) with Subdweller Machine Gun Last Messages --------------- 01857_ Acquired 3 matter. Battle Rifle falls loose from the Twisted Machinery. Sub. Machine Gun falls loose from the Twisted Machinery. 01892_ Acquired Sub. Machine Gun. 28-I9P(c): "I think it's somewhere south of here" 01932_ 5K-B8H(R) emerges from the Twisted Machinery. 01943_ Shotgun destroyed. 01943_ 28-I9P(c) destroyed. 01950_ Subatomizers dissect the Lgt. Ion Engine. 01962_ Subatomizers dissect the Wheel. 01962_ 50-IAG(R) knocked back. 01968_ 5K-B8H(R) knocked back. 01972_ 2P-R5T(R) knocked back. 01973_ Subatomizers dissect the Wheel. 01973_ Imp. Light Cannon destroyed. 01975_ Arm. Wheel destroyed. Map ----- +----------------------------------------------------+ | ?????????????????????????????????????????????????? | | ?????????????????????????????????????????????????? | | ?????????????????????????????????????????????????? | | ????????? ???????????????????????????????????????? | | ????????? ???????????????????????????????????????? | | ????????? ???????????????????????????????????????? | | ????????? ???????????????????????????????????????? | | ???????## ???????????????????????????????????????? | | ???????# ???????????????????????????????????????? | | ???????# ???????????????????????????????????????? | | ???????# ???????????????????????????????????????? | | ??????## ########????????????????????????????????? | | ??????# ## ##???????##??????????????????????? | | ???#### ##?##?## ????#????????????????? | | #### ## ## ### ? ???????????????? | | ## ??????????????? | | ?# ## ???????????????? | | ??# ## *%= """" """ ???????????????? | | #### ##### ! """"""" ????????????????? | | ## ##??## """R% "" ??????????????????? | | ##?## " R #????????????????????? | | #?# R % #?????????????????????? | | ##?# % #?????????????????????? | | #??# % #?????????????????????? | | #?#### #?????????????????????? | | # #????####### @ #?????????????????????? | | ### ##??????????## #?????????????????????? | | ##?########????????????### #?????????????????????? | | ##???#????????????????????##?????????????????????? | | ## ##??????????????????????????????????????????? | | #??????????????????????????????????????????? | | #?????????????????????????????????????????? | | ##?????????????????????????????????????????? | | #??????????????????????????????????????????? | | # "## #??????????????????????????????????????????? | | ?###?##??????????????????????????????????????????? | | ?????????????????????????????????????????????????? | | ?????????????????????????????????????????????????? | | ?????????????????????????????????????????????????? | | ?????????????????????????????????????????????????? | | ?????????????????????????????????????????????????? | | ?????????????????????????????????????????????????? | | ?????????????????????????????????????????????????? | | ?????????????????????????????????????????????????? | | ?????????????????????????????????????????????????? | | ?????????????????????????????????????????????????? | | ?????????????????????????????????????????????????? | | ?????????????????????????????????????????????????? | | ???????????????????????????????????????????##????? | | ??????????????????????????????????????????# #????? | +----------------------------------------------------+ Best States ------------- Heat Dissipation 25 Energy Generation 15 Energy Capacity 250 Matter Stores 300 Matter Capacity 300 Sight Range 16 Terrain Scan Range 14 Terrain Scan Density 10 Armor Coverage 80 Core Shielding 20 Evasion (%) 45 Item Schematics ----------------- None Robot Schematics ------------------ None Fabricated ------------ Nothing Repaired ---------- Nothing Studied --------- None Alien Tech Used ----------------- None Achievements -------------- DATA ERROR: Steam Global Achievement% Fitting Room Organ Harvest There's More Where That Came From Challenges ------------ None Game ------ Seed HelicalSuperquantumMultirail Manual? 0 Play Time 00:24:10 Cumulative 148.6 hours Start 2026.06.25 @ 01:30:18 End 2026.06.25 @ 01:51:53 Sessions 1 Manual Loads 0 Difficulty Rogue Special Mode None Game No. 199 Rogue 199 Adventurer 0 Explorer 0 Win Type - Total 1 Types 1/0/0/0/0/0/0/0/0/0 Lore% 48 Gallery% 52 Achievement% 27 Wizard Run 0 Options --------- Layout 1 ASCII 0 Keyboard 0 Movement Mouse Keybinds 1 Fullscreen 1 Font 24/Smallcaps Map View 50x35 Zoom Use 0% Tactical HUD 1 Map Filters NONE Filters NONE Steam 1 RUN: ae838f9e-ba69-4b94-9305-93a3ab7f42f9